bitfinex/quotes_BTCUSD_20250219
["timestamp","ask_amount","ask_price","bid_price","bid_amount"]
[1739935660275,0.001,96003.0,95996.0,0.086931]
[1739935660474,0.110422,96002.0,95996.0,0.0771]
[1739935661022,0.001,96003.0,95996.0,0.0771]
[1739935661352,0.01633908,96006.0,95996.0,0.0771]
[1739935661563,0.525327,96005.0,95996.0,0.0771]
[1739935661760,0.526327,96005.0,95996.0,0.0771]
[1739935661970,0.227335,96004.0,95996.0,0.0771]
[1739935662254,0.191143,96004.0,95996.0,0.0771]
[1739935662596,0.222475,96004.0,95996.0,0.0771]
[1739935662834,0.01633908,96006.0,95996.0,0.0771]
[1739935663035,0.274727,96005.0,95996.0,0.0771]
[1739935663350,0.34334,96008.0,95996.0,0.0771]
[1739935663554,0.001,96003.0,95996.0,0.0771]
[1739935664191,0.00800673,96021.0,95996.0,0.086931]
[1739935664533,0.02109187,96009.0,95996.0,0.08706196]
[1739935664735,0.430155,96008.0,95996.0,0.08706196]
[1739935664916,0.0004254,96005.0,95996.0,0.08706196]
[1739935665115,0.194243,96004.0,95996.0,0.07723096]
[1739935666258,0.01633812,96003.0,95996.0,0.07723096]
[1739935668049,0.01733812,96003.0,95996.0,0.07723096]
[1739935673195,0.001,96003.0,95996.0,0.07723096]
[1739935676227,0.34684402,96002.0,95996.0,0.07723096]
[1739935676441,0.289174,96001.0,95996.0,0.07723096]
[1739935677112,0.289174,96001.0,95996.0,0.08716014]
[1739935677466,0.289174,96001.0,95996.0,0.08801054]
[1739935677676,0.289174,96001.0,95996.0,0.07808136]
[1739935680781,0.275796,96000.0,95996.0,0.07808136]
[1739935680979,0.01633802,96002.0,95996.0,0.07808136]
[1739935683335,0.0004254,96005.0,95996.0,0.07808136]
[1739935683564,0.971405,96004.0,95996.0,0.07808136]
[1739935684337,0.757508,96004.0,95996.0,0.07808136]
[1739935684530,0.737508,96004.0,95996.0,0.07808136]
[1739935684685,0.729309,96004.0,95996.0,0.07808136]
[1739935685241,0.730309,96004.0,95996.0,0.07808136]
[1739935685391,0.578314,96003.0,95996.0,0.07808136]
[1739935685594,0.784561,96004.0,95996.0,0.07808136]
[1739935685816,0.596325,96002.0,95996.0,0.07808136]
[1739935686019,0.001,96004.0,95996.0,0.07808136]
[1739935686347,0.01633836,96001.0,95996.0,0.07808136]
[1739935690720,0.01676366,96001.0,95996.0,0.07808136]
[1739935693462,0.0004253,96001.0,95996.0,0.07808136]
[1739935694896,0.0004253,96001.0,95997.0,0.01001422]
[1739935695508,0.0004253,96001.0,95996.0,0.07808136]
[1739935696222,0.01633819,96000.0,95996.0,0.07808136]
[1739935701965,0.0004253,96001.0,95996.0,0.07808136]
[1739935705525,0.0004253,96001.0,95996.0,0.00098136]
[1739935708949,0.0004253,96001.0,95997.0,0.0802]
[1739935709350,0.0004253,96001.0,95997.0,0.06386179]
[1739935710155,0.0004253,96001.0,95997.0,0.07043119]
[1739935710328,0.0004253,96001.0,95997.0,0.06386179]
[1739935711952,0.01676341,96001.0,95997.0,0.06386179]
[1739935713423,0.0004253,96001.0,95997.0,0.06386179]
[1739935715746,0.0004253,96001.0,95998.0,0.0494]
[1739935716741,0.01676328,96001.0,95998.0,0.0494]
[1739935723162,0.0004253,96001.0,95998.0,0.0494]
[1739935727294,0.02052137,96010.0,95998.0,0.0494]
[1739935727295,0.08790957,96032.0,95998.0,0.0494]
[1739935727496,2.430768,96031.0,95998.0,0.0494]
[1739935728760,2.430768,96031.0,95998.0,0.02372]
[1739935729492,0.0209489,96002.0,95998.0,0.02372]
[1739935729893,0.14007708,96039.0,95998.0,0.02472]
[1739935730103,2.44677571,96038.0,95999.0,0.0091265]
[1739935730300,2.430768,96037.0,95999.0,0.0091265]
[1739935730498,0.0063,96036.0,95999.0,0.0091265]
[1739935730881,2.430768,96035.0,95999.0,0.0091265]
[1739935731081,2.430768,96035.0,96000.0,0.0809]
[1739935732848,0.02052677,96001.0,96000.0,0.0809]
[1739935734194,0.02052677,96001.0,96000.0,0.0819]
[1739935738825,0.0004253,96032.0,96000.0,0.0819]
[1739935739039,2.430768,96031.0,96000.0,0.0819]
[1739935739337,0.10250365,96030.0,96000.0,0.0819]
[1739935739534,2.437068,96029.0,96000.0,0.0819]
[1739935739693,2.430768,96028.0,96000.0,0.0819]
[1739935739899,2.430768,96028.0,96000.0,0.0809]
[1739935740309,2.430768,96028.0,96000.0,0.0819]
[1739935740509,0.10133558,96027.0,96000.0,0.0809]
[1739935740718,2.430768,96026.0,96000.0,0.0809]
[1739935740922,2.430768,96026.0,96000.0,0.0819]
[1739935741443,0.02122472,96007.0,96000.0,0.0819]
[1739935741648,2.430768,96006.0,96000.0,0.0809]
[1739935743082,2.430768,96006.0,96000.0,0.0819]
[1739935743284,2.430768,96006.0,96000.0,0.0809]
[1739935749497,0.02122472,96007.0,96000.0,0.0817506]
[1739935749647,2.430768,96006.0,96000.0,0.0817506]
[1739935760389,0.10250365,96005.0,95998.0,0.0008506]
[1739935760551,2.430768,96004.0,95998.0,0.0008506]
[1739935762223,2.430768,96004.0,96000.0,0.0008506]
[1739935762577,2.431768,96004.0,96000.0,0.0008506]
[1739935762761,2.430768,96003.0,96000.0,0.0008506]
[1739935762962,2.430768,96004.0,95998.0,0.0008506]
[1739935763164,2.431768,96004.0,95998.0,0.0008506]
[1739935763369,2.430768,96003.0,95998.0,0.0008506]
[1739935763921,0.01328985,96002.0,95998.0,0.0008506]
[1739935764120,2.430768,96001.0,95998.0,0.0008506]
[1739935764327,2.430768,96001.0,95989.0,0.0486]
[1739935764525,2.430768,96001.0,95989.0,0.04873105]
[1739935764912,0.01328985,96002.0,95989.0,0.04873105]
[1739935765309,2.430768,96001.0,95989.0,0.04873105]
[1739935766573,2.431768,96001.0,95989.0,0.04873105]
[1739935766729,2.430768,96000.0,95989.0,0.04873105]
[1739935767535,0.10250365,95999.0,95989.0,0.04873105]
[1739935767738,2.430768,95998.0,95989.0,0.04873105]
[1739935768250,0.01328985,96002.0,95989.0,0.04873105]
[1739935768251,2.430768,96001.0,95989.0,0.04873105]
[1739935769217,0.001,96000.0,95989.0,0.04873105]
[1739935769416,2.430768,95999.0,95989.0,0.04873105]
[1739935769568,2.431768,96001.0,95989.0,0.04873105]
[1739935769927,2.53327165,96000.0,95989.0,0.04873105]
[1739935770146,2.430768,95999.0,95989.0,0.04873105]
[1739935770992,0.02115337,95990.0,95989.0,0.04873105]
[1739935771198,2.45192137,95990.0,95989.0,0.04873105]
[1739935771523,2.20771837,95990.0,95989.0,0.04873105]
[1739935771727,2.16662437,95990.0,95989.0,0.04873105]
[1739935772793,2.16762437,95990.0,95989.0,0.04873105]
[1739935774384,2.16762437,95990.0,95989.0,0.04958165]
[1739935780029,2.37235537,95990.0,95989.0,0.04958165]
[1739935780360,2.20837,95990.0,95989.0,0.04958165]
[1739935780538,1.77458,95990.0,95989.0,0.04958165]
[1739935780838,1.79552351,95990.0,95989.0,0.04958165]
[1739935786383,1.79552351,95990.0,95989.0,0.00098165]
[1739935793351,1.89802716,95990.0,95976.0,0.0814]
[1739935793561,2.001471,95989.0,95976.0,0.0001313]
[1739935793760,2.126371,95988.0,95963.0,0.0814]
[1739935793984,2.001471,95987.0,95965.0,0.00098232]
[1739935794162,2.001471,95986.0,95965.0,0.00098232]
[1739935794486,2.001471,95985.0,95965.0,0.00098232]
[1739935794663,2.10397465,95984.0,95965.0,0.00098232]
[1739935794863,2.001471,95983.0,95965.0,0.00098232]
[1739935795058,2.001471,95982.0,95965.0,0.00098232]
[1739935795307,2.001471,95981.0,95965.0,0.00098232]
[1739935795548,2.001471,95980.0,95965.0,0.00098232]
[1739935795696,2.001471,95979.0,95965.0,0.00098232]
[1739935795900,0.10250365,95984.0,95965.0,0.00098232]
[1739935795901,2.001471,95978.0,95965.0,0.00198232]
[1739935796101,2.001471,95977.0,95965.0,0.00198232]
[1739935796305,2.001471,95976.0,95965.0,0.00098232]
[1739935796464,2.001471,95975.0,95965.0,0.00198232]
[1739935796816,2.001471,95974.0,95965.0,0.00098232]
[1739935797024,2.001471,95973.0,95965.0,0.00098232]
[1739935797193,2.001471,95972.0,95965.0,0.00198232]
[1739935797405,2.001471,95971.0,95965.0,0.00198232]
[1739935797615,2.001471,95970.0,95965.0,0.00198232]
[1739935797814,2.001471,95969.0,95965.0,0.00198232]
[1739935798052,2.001471,95968.0,95965.0,0.00198232]
[1739935798256,2.001471,95967.0,95965.0,0.00198232]
[1739935798402,2.001471,95966.0,95965.0,0.00198232]
[1739935798607,2.001471,95977.0,95965.0,0.00198232]
[1739935798831,2.001471,95976.0,95965.0,0.00098232]
[1739935799229,2.006471,95975.0,95965.0,0.00198232]
[1739935799432,2.001471,95974.0,95965.0,0.00098232]
[1739935799635,2.001471,95973.0,95965.0,0.00098232]
[1739935799854,0.1249,95988.0,95965.0,0.00198232]
[1739935799855,2.001471,95972.0,95965.0,0.00198232]
[1739935800068,2.001471,95971.0,95965.0,0.00098232]
[1739935800271,2.001471,95970.0,95965.0,0.00098232]
[1739935800426,2.001471,95969.0,95965.0,0.00098232]
[1739935800635,2.001471,95968.0,95965.0,0.00098232]
[1739935800840,0.02083237,95966.0,95965.0,0.00098232]
[1739935801343,1.98946837,95966.0,95965.0,0.00098232]
[1739935801578,0.02083237,95966.0,95965.0,0.00098232]
[1739935802605,1.98942237,95966.0,95965.0,0.00098232]
[1739935802812,0.02383237,95966.0,95965.0,0.00098232]
[1739935803036,1.99242237,95966.0,95965.0,0.00098232]
[1739935803226,1.99238037,95966.0,95965.0,0.00098232]
[1739935803581,0.02383237,95966.0,95965.0,0.00098232]
[1739935803781,1.86638137,95966.0,95965.0,0.00098232]
[1739935806856,1.83140337,95966.0,95965.0,0.00098232]
[1739935807557,1.76252237,95966.0,95965.0,0.00098232]
[1739935813573,1.12968237,95966.0,95965.0,0.00098232]
[1739935819398,0.89123654,95966.0,95965.0,0.00098232]
[1739935819715,1.786858,95974.0,95965.0,0.00098232]
[1739935819922,1.786858,95973.0,95965.0,0.00098232]
[1739935820137,1.786858,95972.0,95965.0,0.00098232]
[1739935820271,1.786858,95971.0,95965.0,0.00098232]
[1739935820780,1.786858,95970.0,95965.0,0.00098232]
[1739935821015,1.786858,95969.0,95966.0,0.00823823]
[1739935821222,0.005,95974.0,95966.0,0.00823823]
[1739935821223,1.786858,95968.0,95966.0,0.00823823]
[1739935821363,1.77559874,95967.0,95966.0,0.00823823]
[1739935821691,1.77559874,95967.0,95965.0,0.00098232]
[1739935821843,1.786858,95966.0,95965.0,0.00098232]
[1739935823276,1.632406,95966.0,95965.0,0.00098232]
[1739935825628,1.579316,95966.0,95965.0,0.00098232]
[1739935826062,0.197752,95966.0,95965.0,0.00098232]
[1739935826644,0.01988506,95988.0,95965.0,0.00098232]
[1739935826824,1.589106,95987.0,95966.0,0.00823823]
[1739935829451,0.023,95992.0,95966.0,0.00923823]
[1739935829655,0.0210289,95967.0,95966.0,0.00923823]
[1739935829896,1.0543419,95967.0,95966.0,0.001]
[1739935830032,0.0210289,95967.0,95966.0,0.001]
[1739935830561,0.0210289,95967.0,95965.0,0.00098232]
[1739935830562,0.7885989,95967.0,95965.0,0.00098232]
[1739935830759,0.0210289,95967.0,95965.0,0.00098232]
[1739935830963,0.0210289,95967.0,95966.0,0.1264]
[1739935831162,0.0210289,95967.0,95966.0,0.1254]
[1739935831594,0.023,95990.0,95966.0,0.1254]
[1739935831799,1.589106,95989.0,95967.0,0.01263823]
[1739935832032,0.023,95992.0,95967.0,0.01263823]
[1739935832220,0.023,95990.0,95967.0,0.01263823]
[1739935832425,1.589106,95989.0,95967.0,0.01263823]
[1739935832764,1.589106,95989.0,95966.0,0.1254]
[1739935832969,1.589106,95993.0,95966.0,0.1254]
[1739935833413,0.002,95990.0,95967.0,0.001]
[1739935833618,1.646706,95989.0,95966.0,0.1254]
[1739935833794,1.69160965,95988.0,95966.0,0.1254]
[1739935833993,1.589106,95987.0,95966.0,0.1264]
[1739935834217,1.589106,95987.0,95966.0,0.1254]
[1739935834392,0.0794,95986.0,95965.0,0.00098232]
[1739935834607,0.023,95984.0,95967.0,0.001]
[1739935834788,1.646706,95983.0,95967.0,0.001]
[1739935834985,1.589106,95982.0,95967.0,0.001]
[1739935835212,0.023,95984.0,95967.0,0.001]
[1739935835213,1.589106,95983.0,95967.0,0.001]
[1739935835937,1.589106,95983.0,95965.0,0.00098232]
[1739935836112,1.589106,95983.0,95966.0,0.001]
[1739935836308,0.10250365,95982.0,95966.0,0.001]
[1739935836510,1.589106,95981.0,95966.0,0.001]
[1739935836841,1.589106,95981.0,95967.0,0.001]
[1739935837064,1.589106,95981.0,95965.0,0.00098232]
[1739935837269,1.589106,95981.0,95966.0,0.001]
[1739935837270,0.0806,95977.0,95966.0,0.001]
[1739935837505,0.0806,95977.0,95956.0,0.00013148]
[1739935837506,0.02119956,95968.0,95956.0,0.00013148]
[1739935837726,0.173,95965.0,95947.0,0.000851]
[1739935837929,0.173,95965.0,95949.0,0.0009827]
[1739935837930,0.173,95963.0,95949.0,0.0009827]
[1739935838106,0.15,95961.0,95949.0,0.0009827]
[1739935838335,0.15,95959.0,95949.0,0.0009827]
[1739935838543,0.15,95957.0,95949.0,0.0009827]
[1739935838920,0.15,95955.0,95949.0,0.0009827]
[1739935839125,0.15,95953.0,95949.0,0.0009827]
[1739935839277,0.15,95951.0,95949.0,0.0009827]
[1739935839476,1.589106,95952.0,95949.0,0.0009827]
[1739935839477,1.739106,95950.0,95949.0,0.0009827]
[1739935839804,0.15,95949.0,95917.0,0.0492]
[1739935839999,0.0576,95948.0,95926.0,4.373e-05]
[1739935840178,0.15,95947.0,95926.0,4.373e-05]
[1739935840356,0.15,95945.0,95926.0,4.373e-05]
[1739935840572,0.15,95943.0,95926.0,4.373e-05]
[1739935840771,0.15,95941.0,95926.0,4.373e-05]
[1739935841000,0.15,95939.0,95926.0,4.373e-05]
[1739935841201,1.589106,95938.0,95926.0,4.373e-05]
[1739935841606,1.589106,95949.0,95926.0,4.373e-05]
[1739935841829,1.589106,95937.0,95926.0,4.373e-05]
[1739935842029,0.10250365,95949.0,95926.0,4.373e-05]
[1739935842030,1.589106,95936.0,95926.0,4.373e-05]
[1739935842235,1.589106,95936.0,95862.0,0.8589]
[1739935842236,0.1267,95936.0,95877.0,0.0474]
[1739935842601,0.02,95921.0,95877.0,0.0474]
[1739935842786,1.913306,95920.0,95877.0,0.0474]
[1739935842955,1.589106,95919.0,95877.0,0.0474]
[1739935843159,1.61346283,95919.0,95877.0,0.0474]
[1739935843373,1.589106,95918.0,95877.0,0.0474]
[1739935843569,1.589106,95918.0,95878.0,0.08478757]
[1739935843776,1.589106,95918.0,95894.0,0.0782]
[1739935844070,0.0212498,95899.0,95894.0,0.0782]
[1739935844247,0.245494,95898.0,95895.0,0.00790506]
[1739935844441,1.589106,95919.0,95895.0,0.00790506]
[1739935844679,0.15,95896.0,95895.0,0.00790506]
[1739935844882,0.422221,95896.0,95895.0,0.00790506]
[1739935845235,0.422221,95896.0,95895.0,0.00797794]
[1739935845643,0.422221,95896.0,95895.0,7.288e-05]
[1739935845849,0.423221,95896.0,95895.0,7.288e-05]
[1739935846053,0.422221,95896.0,95895.0,7.288e-05]
[1739935846461,0.423221,95896.0,95895.0,7.288e-05]
[1739935856997,0.423221,95896.0,95895.0,0.00092388]
[1739935857328,0.422221,95896.0,95895.0,0.00092388]
[1739935857473,0.425221,95896.0,95895.0,0.00092388]
[1739935858643,0.422221,95896.0,95895.0,0.00092388]
[1739935859048,0.425221,95896.0,95895.0,0.00092388]
[1739935859293,0.422221,95896.0,95895.0,0.00092388]
[1739935859686,0.425221,95896.0,95895.0,0.00092388]
[1739935860616,0.422221,95896.0,95895.0,0.00092388]
[1739935861300,0.076,95897.0,95877.0,0.0474]
[1739935861481,1.67169306,95896.0,95877.0,0.04749134]
[1739935861682,1.589106,95895.0,95877.0,9.134e-05]
[1739935862079,0.02435683,95894.0,95877.0,9.134e-05]
[1739935862304,1.589106,95893.0,95877.0,9.134e-05]
[1739935862503,0.10250365,95892.0,95877.0,9.134e-05]
[1739935862748,1.589106,95891.0,95877.0,9.134e-05]
[1739935864490,1.61346283,95891.0,95877.0,9.134e-05]
[1739935864790,1.589106,95890.0,95877.0,9.134e-05]
[1739935864943,0.02082188,95878.0,95877.0,9.134e-05]
[1739935865148,1.60992788,95878.0,95877.0,9.134e-05]
[1739935866605,1.61392788,95878.0,95877.0,9.134e-05]
[1739935869976,1.60992788,95878.0,95877.0,9.134e-05]
[1739935870180,1.61492788,95878.0,95877.0,9.134e-05]
[1739935870586,1.61492788,95878.0,95877.0,0.00051684]
[1739935871374,1.60992788,95878.0,95877.0,0.00051684]
[1739935871784,0.02082188,95878.0,95877.0,0.00051684]
[1739935871982,0.02582188,95878.0,95877.0,0.00051684]
[1739935872601,0.02082188,95878.0,95877.0,0.00051684]
[1739935873015,1.60992788,95878.0,95877.0,0.00051684]
[1739935873423,1.61492788,95878.0,95877.0,0.00051684]
[1739935874201,1.71743153,95878.0,95877.0,0.00051684]
[1739935874612,1.61492788,95878.0,95877.0,0.00051684]
[1739935874813,1.60992788,95878.0,95877.0,0.00051684]
[1739935875220,1.61492788,95878.0,95877.0,0.00051684]
[1739935875418,1.60992788,95878.0,95877.0,0.00051684]
[1739935875617,1.61492788,95878.0,95877.0,0.00051684]
[1739935875827,1.71743153,95878.0,95877.0,0.00051684]
[1739935876036,1.71243153,95878.0,95877.0,0.00051684]
[1739935876344,1.71743153,95878.0,95877.0,0.00051684]
[1739935876562,1.61492788,95878.0,95877.0,0.00051684]
[1739935876772,1.60992788,95878.0,95877.0,0.00051684]
[1739935878166,1.61492788,95878.0,95877.0,0.00051684]
[1739935878392,1.60992788,95878.0,95877.0,0.00051684]
[1739935878812,1.61492788,95878.0,95877.0,0.00051684]
[1739935879028,1.71743153,95878.0,95877.0,0.00051684]
[1739935879835,1.61492788,95878.0,95877.0,0.00051684]
[1739935885110,1.60992788,95878.0,95877.0,0.00051684]
[1739935885323,1.61292788,95878.0,95877.0,0.00051684]
[1739935886132,1.60992788,95878.0,95877.0,0.00051684]
[1739935886332,1.61292788,95878.0,95877.0,0.00051684]
[1739935886718,1.61292788,95878.0,95876.0,0.04626697]
[1739935886902,1.589106,95877.0,95876.0,0.04626697]
[1739935888885,1.591106,95877.0,95876.0,0.04626697]
[1739935890226,0.7581,95877.0,95876.0,0.04626697]
[1739935890427,0.662542,95877.0,95876.0,0.04626697]
[1739935890993,0.660542,95877.0,95876.0,0.04626697]
[1739935891606,1.112149,95877.0,95876.0,0.04626697]
[1739935891929,1.110149,95877.0,95876.0,0.04626697]
[1739935892242,0.946125,95877.0,95876.0,0.04626697]
[1739935892443,0.636817,95877.0,95876.0,0.04626697]
[1739935893320,0.606854,95877.0,95876.0,0.04626697]
[1739935894299,0.606854,95877.0,95876.0,0.04669247]
[1739935894707,0.273682,95877.0,95876.0,0.04669247]
[1739935894905,1.533344,95894.0,95877.0,0.075]
[1739935895146,0.02046719,95882.0,95878.0,0.08750925]
[1739935895345,0.206366,95881.0,95878.0,0.08750925]
[1739935895572,0.02046719,95882.0,95878.0,0.08750925]
[1739935895749,0.139755,95881.0,95880.0,0.0753]
[1739935895905,0.108383,95881.0,95880.0,0.0753]
[1739935896350,0.005,95894.0,95880.0,0.0753]
[1739935896554,1.227672,95893.0,95880.0,0.0753]
[1739935896757,0.02122729,95883.0,95880.0,0.0753]
[1739935896908,0.133508,95882.0,95880.0,0.0753]
[1739935897142,0.110776,95882.0,95880.0,0.0753]
[1739935897353,0.103617,95882.0,95880.0,0.0753]
[1739935897694,0.001,95882.0,95880.0,0.0753]
[1739935898032,0.0004255,95902.0,95880.0,0.0753]
[1739935898257,1.565342,95894.0,95881.0,0.09617719]
[1739935898465,0.31253544,95893.0,95883.0,0.0762]
[1739935898661,0.246359,95892.0,95883.0,0.0762]
[1739935899807,0.121173,95892.0,95883.0,0.0762]
[1739935899992,0.149344,95892.0,95883.0,0.0762]
[1739935900191,0.149344,95892.0,95891.0,0.15994464]
[1739935900401,0.0004255,95902.0,95892.0,0.0762]
[1739935900618,0.004,95894.0,95892.0,0.0762]
[1739935900818,0.05764,95897.0,95892.0,0.0762]
[1739935901033,0.418861,95896.0,95892.0,0.0762]
[1739935901279,1.589106,95925.0,95892.0,0.0762]
[1739935901455,0.02111638,95896.0,95893.0,0.06139446]
[1739935901890,0.02111638,95896.0,95893.0,0.0454]
[1739935903078,0.12007708,95928.0,95893.0,0.0454]
[1739935903301,1.589106,95925.0,95893.0,0.0454]
[1739935904115,1.589106,95925.0,95893.0,0.0474]
[1739935904316,1.589106,95925.0,95893.0,0.0454]
[1739935904487,0.10250365,95924.0,95893.0,0.0454]
[1739935904844,1.589106,95923.0,95893.0,0.0454]
[1739935905169,1.589106,95923.0,95893.0,0.0464]
[1739935905372,1.589106,95923.0,95893.0,0.0454]
[1739935907718,1.595106,95923.0,95893.0,0.0454]
[1739935907937,1.69160965,95922.0,95893.0,0.0454]
[1739935908162,1.589106,95921.0,95893.0,0.0454]
[1739935909066,0.0210273,95894.0,95893.0,0.0454]
[1739935909291,0.8349083,95894.0,95893.0,0.0454]
[1739935909461,0.8610493,95894.0,95893.0,0.0454]
[1739935910066,0.5280483,95894.0,95893.0,0.0454]
[1739935910275,0.123332,95894.0,95893.0,0.0454]
[1739935910510,1.589106,95921.0,95893.0,0.0454]
[1739935910643,0.0204938,95898.0,95893.0,0.0454]
[1739935910851,0.440191,95897.0,95893.0,0.0454]
[1739935911234,0.188484,95897.0,95884.0,0.3246]
[1739935911450,1.589106,95897.0,95884.0,0.3246]
[1739935911665,1.394391,95897.0,95893.0,0.002]
[1739935911866,1.375412,95896.0,95894.0,0.078]
[1739935912047,0.0204938,95898.0,95894.0,0.078]
[1739935912048,0.663025,95895.0,95894.0,0.1272]
[1739935912220,0.532136,95895.0,95894.0,0.1272]
[1739935912419,0.898994,95897.0,95894.0,0.1272]
[1739935913699,0.899994,95897.0,95894.0,0.1272]
[1739935913913,1.589106,95896.0,95894.0,0.1272]
[1739935914270,1.590106,95897.0,95894.0,0.1272]
[1739935914409,1.589106,95896.0,95894.0,0.1272]
[1739935915226,1.589106,95897.0,95894.0,0.1272]
[1739935915848,1.356536,95897.0,95894.0,0.1272]
[1739935916046,1.356536,95896.0,95894.0,0.1272]
[1739935916255,0.0204938,95898.0,95894.0,0.1272]
[1739935916465,1.356536,95897.0,95894.0,0.1272]
[1739935916855,0.001,95897.0,95894.0,0.1272]
[1739935917050,1.414136,95896.0,95894.0,0.1272]
[1739935917292,0.0752,95921.0,95894.0,0.1272]
[1739935917293,1.356536,95895.0,95894.0,0.1272]
[1739935917472,0.001,95898.0,95894.0,0.1272]
[1739935917677,1.414136,95897.0,95894.0,0.13992]
[1739935917878,1.356536,95896.0,95894.0,0.13992]
[1739935918079,0.001,95897.0,95894.0,0.13992]
[1739935918276,1.414136,95896.0,95894.0,0.13992]
[1739935918517,0.0752,95921.0,95894.0,0.13992]
[1739935918518,1.356536,95920.0,95894.0,0.13992]
[1739935918722,1.356536,95919.0,95894.0,0.1272]
[1739935919146,1.356536,95920.0,95894.0,0.1272]
[1739935919639,0.001,95898.0,95894.0,0.1272]
[1739935919935,1.414136,95897.0,95894.0,0.1272]
[1739935920084,1.356536,95896.0,95894.0,0.1272]
[1739935920429,0.023,95918.0,95894.0,0.13996254]
[1739935920640,0.023,95916.0,95894.0,0.13996254]
[1739935920839,0.001,95898.0,95894.0,0.13020254]
[1739935921048,1.205431,95897.0,95894.0,0.13020254]
[1739935921259,1.356536,95915.0,95894.0,0.13020254]
[1739935921433,1.356536,95915.0,95895.0,0.01306279]
[1739935922851,0.02077075,95896.0,95895.0,0.01306279]
[1739935923028,1.19735775,95896.0,95895.0,0.01306279]
[1739935923227,1.15471675,95896.0,95895.0,0.01306279]
[1739935923416,1.15471675,95896.0,95894.0,0.11744]
[1739935923608,1.04897,95895.0,95894.0,0.11744]
[1739935924054,0.739689,95895.0,95894.0,0.11744]
[1739935925589,0.00043737,95922.0,95894.0,0.0492]
[1739935925804,1.356536,95921.0,95899.0,0.08374464]
[1739935926017,1.08905796,95921.0,95902.0,0.0828]
[1739935926214,0.00043737,95922.0,95902.0,0.0828]
[1739935926397,1.089058,95921.0,95902.0,0.0828]
[1739935926602,1.089058,95921.0,95903.0,0.0459]
[1739935926759,1.089058,95921.0,95904.0,0.15090086]
[1739935927103,0.02111328,95910.0,95904.0,0.15090086]
[1739935928905,0.006,95921.0,95904.0,0.15090086]
[1739935929114,1.089058,95921.0,95904.0,0.15090086]
[1739935929493,0.02136642,95912.0,95904.0,0.15090086]
[1739935929633,0.945036,95911.0,95904.0,0.15090086]
[1739935929837,0.515999,95911.0,95904.0,0.15090086]
[1739935930683,0.515999,95911.0,95904.0,0.1287]
[1739935931803,1.089058,95920.0,95904.0,0.1287]
[1739935932206,0.00043737,95922.0,95904.0,0.1287]
[1739935932207,1.089058,95921.0,95904.0,0.1287]
[1739935932533,0.715654,95921.0,95904.0,0.1287]
[1739935932735,1.089058,95921.0,95904.0,0.1287]
[1739935932934,1.089058,95921.0,95905.0,0.05455659]
[1739935932935,0.003,95920.0,95905.0,0.05455659]
[1739935933162,0.830117,95919.0,95904.0,0.1287]
[1739935933367,0.97321,95920.0,95904.0,0.1287]
[1739935933580,0.891257,95919.0,95904.0,0.1287]
[1739935933766,0.496899,95918.0,95904.0,0.1287]
[1739935933939,0.003851,95921.0,95904.0,0.1287]
[1739935934178,0.003851,95921.0,95905.0,0.05455659]
[1739935934179,0.761148,95920.0,95905.0,0.05455659]
[1739935934379,0.761148,95920.0,95904.0,0.1287]
[1739935935477,0.003,95919.0,95904.0,0.1287]
[1739935935672,1.08138,95918.0,95904.0,0.1287]
[1739935935884,1.089058,95919.0,95904.0,0.1287]
[1739935936059,0.627864,95918.0,95904.0,0.1287]
[1739935936396,0.919398,95919.0,95905.0,0.05466085]
[1739935936537,1.089058,95918.0,95904.0,0.1287]
[1739935937296,0.02062154,95912.0,95904.0,0.1287]
[1739935937491,0.812458,95911.0,95904.0,0.1287]
[1739935938871,0.812458,95911.0,95904.0,0.1297]
[1739935939923,0.812458,95911.0,95904.0,0.1287]
[1739935941048,0.812458,95911.0,95905.0,0.05370446]
[1739935941477,0.812458,95911.0,95904.0,0.1287]
[1739935941900,0.000851,95921.0,95903.0,0.129]
[1739935942114,0.082,95944.0,95904.0,0.00104257]
[1739935942115,0.58512,95920.0,95904.0,0.00104257]
[1739935942296,0.58512,95920.0,95901.0,0.3246]
[1739935942297,0.704975,95919.0,95906.0,0.0466]
[1739935942466,0.267046,95918.0,95908.0,0.129]
[1739935942635,0.00013113,95939.0,95908.0,0.129]
[1739935942839,0.905578,95938.0,95908.0,0.129]
[1739935943042,0.001,95921.0,95908.0,0.129]
[1739935943244,0.279457,95920.0,95908.0,0.129]
[1739935943580,0.279457,95920.0,95909.0,0.01755068]
[1739935943780,0.905578,95938.0,95909.0,0.01755068]
[1739935944963,0.905578,95938.0,95910.0,0.0791]
[1739935945167,0.905578,95938.0,95911.0,0.0489]
[1739935945348,0.905578,95938.0,95913.0,0.0489]
[1739935945349,0.912578,95938.0,95913.0,0.0489]
[1739935945556,0.905578,95937.0,95915.0,0.0766]
[1739935946416,0.0004254,95921.0,95915.0,0.0766]
[1739935947301,0.13602,95920.0,95915.0,0.0766]
[1739935947701,0.02091228,95916.0,95915.0,0.0766]
[1739935948964,0.001,95920.0,95915.0,0.0766]
[1739935948965,0.001,95920.0,95916.0,0.1244]
[1739935949181,0.001,95920.0,95919.0,0.20814464]
[1739935950774,0.0004254,95921.0,95919.0,0.20814464]
[1739935951096,0.0004254,95921.0,95920.0,0.1244]
[1739935951394,0.0004254,95921.0,95920.0,0.14844929]
[1739935952058,0.0004254,95921.0,95920.0,0.14744929]
[1739935952263,0.0004254,95921.0,95920.0,0.14640691]
[1739935952820,0.0014254,95921.0,95920.0,0.14740691]
[1739935953349,0.0014254,95921.0,95920.0,0.47200691]
[1739935954090,0.02,95968.0,95927.0,0.01007772]
[1739935954289,0.023,95965.0,95928.0,0.0812]
[1739935954489,0.023,95963.0,95928.0,0.0812]
[1739935954718,0.905578,95962.0,95928.0,0.0812]
[1739935955941,0.911578,95962.0,95928.0,0.0812]
[1739935956172,0.905578,95961.0,95928.0,0.0812]
[1739935956345,1.00348462,95961.0,95929.0,0.00912777]
[1739935956547,0.905578,95960.0,95929.0,0.00912777]
[1739935957124,0.0792,95959.0,95929.0,0.00912777]
[1739935957322,0.905578,95958.0,95928.0,0.0812]
[1739935958866,0.910578,95958.0,95928.0,0.0812]